fUSD/lending_fUSD_20241216
["ID","MTS","AMOUNT","RATE_DAILY","PERIOD"]
[345518276,1734310233511,-3000.0,0.000222,2]
[345518277,1734310233521,-279.71796229,0.00022202,2]
[345518278,1734310233530,-500.0,0.00022218,3]
[345518279,1734310233540,-500.0,0.00022218,3]
[345518280,1734310233549,-500.0,0.00022218,3]
[345518281,1734310233558,-500.0,0.00022218,3]
[345518282,1734310233568,-500.0,0.00022218,3]
[345518283,1734310233578,-500.82609456,0.00022218,3]
[345518284,1734310233588,-500.0,0.00022218,3]
[345518285,1734310233597,-513.51,0.00022218,3]
[345518286,1734310233607,-500.0,0.00022218,3]
[345518287,1734310233617,-500.0,0.00022218,3]
[345518288,1734310233628,-500.0,0.00022218,3]
[345518289,1734310233637,-500.0,0.00022218,3]
[345518290,1734310233647,-524.15,0.00022218,3]
[345518291,1734310233657,-500.0,0.00022218,3]
[345518292,1734310233667,-500.0,0.00022218,3]
[345518293,1734310233677,-500.0,0.00022218,3]
[345518294,1734310233691,-607.05,0.00022218,3]
[345518295,1734310233700,-500.0,0.00022218,3]
[345518296,1734310233710,-500.0,0.00022218,3]
[345518297,1734310233720,-500.0,0.00022218,3]
[345518298,1734310233730,-279.71796229,0.00022231,2]
[345518299,1734310233740,-150.0,0.00022238,2]
[345518300,1734310233750,-500.0,0.00022244,3]
[345518301,1734310233760,-500.0,0.00022244,3]
[345518302,1734310233770,-500.0,0.00022244,3]
[345518303,1734310233780,-500.0,0.00022244,3]
[345518304,1734310233790,-500.0,0.00022244,3]
[345518305,1734310233800,-500.0,0.00022244,3]
[345518306,1734310233810,-500.0,0.00022244,3]
[345518307,1734310233820,-500.0,0.00022244,3]
[345518308,1734310233830,-622.03,0.00022244,3]
[345518309,1734310233840,-500.0,0.00022244,3]
[345518310,1734310233849,-500.0,0.00022244,3]
[345518311,1734310233859,-500.0,0.00022244,3]
[345518312,1734310233869,-500.0,0.00022244,3]
[345518313,1734310233878,-500.0,0.00022244,3]
[345518314,1734310233889,-505.29115522,0.00022244,3]
[345518315,1734310233899,-500.0,0.00022244,3]
[345518316,1734310233908,-500.0,0.00022244,3]
[345518317,1734310233917,-500.0,0.00022244,3]
[345518318,1734310233927,-500.0,0.00022244,3]
[345518319,1734310233938,-500.0,0.00022244,3]
[345518320,1734310233948,-500.0,0.00022244,3]
[345518321,1734310233957,-150.0,0.00022245,2]
[345518322,1734310233967,-500.0,0.00022245,3]
[345518323,1734310233977,-500.0,0.00022245,3]
[345518324,1734310233986,-500.0,0.00022245,3]
[345518325,1734310233996,-500.0,0.00022245,3]
[345518326,1734310234006,-500.0,0.00022245,3]
[345518327,1734310234016,-500.0,0.00022245,3]
[345518328,1734310234025,-500.0,0.00022245,3]
[345518329,1734310234035,-484.67512735,0.00022245,3]
[345518330,1734310234045,-500.0,0.00022245,3]
[345518331,1734310234055,-609.15,0.00022245,3]
[345518332,1734310234069,-500.0,0.00022245,3]
[345518333,1734310234079,-500.0,0.00022245,3]
[345518334,1734310234089,-500.0,0.00022245,3]
[345518335,1734310234098,-267.762203,0.00022245,3]
[345518336,1734310234109,-500.0,0.00022245,3]
[345518337,1734310234119,-500.0,0.00022245,3]
[345518338,1734310234129,-515.0,0.00022245,3]
[345518339,1734310234140,-500.0,0.00022245,3]
[345518340,1734310234149,-563.05,0.00022245,3]
[345518341,1734310234159,-500.0,0.00022245,3]
[345518342,1734310234169,-500.0,0.00022245,3]
[345518343,1734310234178,-500.0,0.00022245,3]
[345518344,1734310234190,-500.0,0.00022245,3]
[345518345,1734310234200,-500.0,0.00022245,3]
[345518346,1734310234213,-500.0,0.00022245,3]
[345518347,1734310234224,-500.0,0.00022245,3]
[345518348,1734310234235,-639.61,0.00022245,3]
[345518349,1734310234244,-6.28473044,0.00022245,3]
[345518350,1734310234257,-493.71526956,0.00022245,3]
[345518351,1734310234267,-615.97,0.00022245,3]
[345518352,1734310234276,-303.86739736,0.00022245,3]
[345518358,1734310237567,-380.67641698,0.00021999,3]
[345518359,1734310237579,-257.17358302,0.00021999,3]
[345518360,1734310237589,-39.06779669,0.00021999,3]
[345518361,1734310237730,-460.93220331,0.00021999,3]
[345518362,1734310237740,-500.0,0.00021999,3]
[345518363,1734310237749,-196.13260264,0.00022245,3]
[345518364,1734310237758,-500.0,0.00022245,3]
[345518365,1734310237767,-500.0,0.00022245,3]
[345518366,1734310237777,-500.0,0.00022245,3]
[345518367,1734310237786,-500.0,0.00022245,3]
[345518368,1734310237795,-500.0,0.00022245,3]
[345518369,1734310237805,-500.0,0.00022245,3]
[345518370,1734310237815,-500.0,0.00022245,3]
[345518371,1734310237824,-602.73104773,0.00022245,3]
[345518372,1734310237833,-500.0,0.00022245,3]
[345518373,1734310237844,-500.0,0.00022245,3]
[345518374,1734310237855,-500.0,0.00022245,3]
[345518375,1734310237865,-500.0,0.00022245,3]
[345518376,1734310237874,-500.0,0.00022245,3]
[345518377,1734310237883,-264.92706808,0.00022245,3]
[345518378,1734310237894,-500.0,0.00022245,3]
[345518379,1734310237903,-500.0,0.00022245,3]
[345518380,1734310237913,-500.0,0.00022245,3]
[345518381,1734310237923,-500.0,0.00022245,3]
[345518382,1734310237933,-500.0,0.00022245,3]
[345518383,1734310237945,-500.0,0.00022245,3]
[345518384,1734310237954,-500.0,0.00022245,3]
[345518385,1734310237964,-500.0,0.00022245,3]
[345518386,1734310237973,-500.0,0.00022245,3]
[345518387,1734310237982,-455.0441478,0.00022245,3]
[345518388,1734310237992,-500.0,0.00022245,3]
[345518389,1734310238001,-1000.0,0.00022245,3]
[345518390,1734310238010,-500.0,0.00022245,3]
[345518391,1734310238020,-500.0,0.00022246,3]
[345518392,1734310238031,-500.0,0.00022246,3]
[345518393,1734310238041,-500.0,0.00022246,3]
[345518394,1734310238051,-284.7,0.00022246,3]
[345518395,1734310238060,-500.0,0.00022246,3]
[345518396,1734310238073,-500.0,0.00022246,3]
[345518397,1734310238082,-500.0,0.00022246,3]
[345518398,1734310238092,-500.0,0.00022246,3]
[345518399,1734310238102,-529.05299285,0.00022246,3]
[345518400,1734310238114,-500.0,0.00022246,3]
[345518401,1734310238124,-500.0,0.00022246,3]
[345518402,1734310238133,-500.0,0.00022246,3]
[345518403,1734310238144,-500.0,0.00022246,3]
[345518404,1734310238153,-500.0,0.00022246,3]
[345518405,1734310238165,-500.0,0.00022246,3]
[345518406,1734310238174,-500.0,0.00022246,3]
[345518407,1734310238185,-500.0,0.00022246,3]
[345518408,1734310238197,-500.0,0.00022246,3]
[345518409,1734310238207,-500.0,0.00022246,3]
[345518410,1734310238217,-500.0,0.00022246,3]
[345518411,1734310238226,-500.0,0.00022246,3]
[345518412,1734310238237,-500.0,0.00022246,3]
[345518413,1734310238246,-500.0,0.00022246,3]
[345518414,1734310238256,-500.0,0.00022246,3]
[345518415,1734310238265,-500.0,0.00022246,3]
[345518416,1734310238275,-500.0,0.00022246,3]
[345518417,1734310238284,-500.0,0.00022246,3]
[345518418,1734310238293,-500.0,0.00022246,3]
[345518419,1734310238302,-500.0,0.00022246,3]
[345518420,1734310238312,-500.0,0.00022246,3]
[345518421,1734310238322,-500.0,0.00022246,3]
[345518422,1734310238331,-500.0,0.00022246,3]
[345518424,1734310238341,-547.72,0.00022246,3]
[345518425,1734310238350,-500.0,0.00022246,3]
[345518426,1734310238360,-500.0,0.00022246,3]
[345518427,1734310238369,-500.0,0.00022246,3]
[345518428,1734310238380,-500.0,0.00022246,3]
[345518429,1734310238389,-500.0,0.00022246,3]
[345518430,1734310238398,-500.0,0.00022246,3]
[345518431,1734310238407,-500.0,0.00022246,3]
[345518433,1734310238416,-500.0,0.00022246,2]
[345518435,1734310238425,-500.0,0.00022246,3]
[345518437,1734310238435,-500.0,0.00022246,3]
[345518439,1734310238447,-500.0,0.00022246,3]
[345518440,1734310238457,-500.0,0.00022246,3]
[345518442,1734310238466,-583.26,0.00022246,3]
[345518445,1734310238476,-500.0,0.00022246,3]
[345518447,1734310238485,-619.48,0.00022246,3]
[345518449,1734310238495,-500.0,0.00022246,3]
[345518451,1734310238504,-500.0,0.00022246,3]
[345518453,1734310238514,-500.0,0.00022246,3]
[345518454,1734310238523,-500.0,0.00022246,3]
[345518457,1734310238533,-500.0,0.00022246,3]
[345518458,1734310238542,-500.0,0.00022246,3]
[345518461,1734310238552,-1000.0,0.00022246,30]
[345518462,1734310238561,-500.0,0.00022246,3]
[345518464,1734310238570,-500.0,0.00022246,3]
[345518467,1734310238580,-500.0,0.00022246,3]
[345518468,1734310238590,-570.48,0.00022246,3]
[345518471,1734310238599,-500.0,0.00022246,3]
[345518472,1734310238608,-500.0,0.00022246,3]
[345518474,1734310238618,-500.0,0.00022246,3]
[345518476,1734310238627,-500.0,0.00022246,3]
[345518478,1734310238637,-500.0,0.00022246,3]
[345518481,1734310238648,-500.0,0.00022246,3]
[345518482,1734310238657,-500.0,0.00022246,3]
[345518485,1734310238667,-500.0,0.00022246,3]
[345518486,1734310238678,-500.0,0.00022246,3]
[345518489,1734310238687,-500.0,0.00022246,3]
[345518490,1734310238698,-500.0,0.00022246,3]
[345518492,1734310238707,-500.0,0.00022246,3]
[345518494,1734310238717,-500.0,0.00022246,3]
[345518496,1734310238727,-500.0,0.00022246,3]
[345518498,1734310238739,-500.0,0.00022246,3]
[345518500,1734310238751,-500.0,0.00022246,3]
[345518502,1734310238760,-500.0,0.00022246,3]
[345518504,1734310238770,-999.0,0.00022246,7]
[345518506,1734310238779,-999.0,0.00022246,7]
[345518508,1734310238789,-999.0,0.00022246,7]
[345518510,1734310238798,-999.0,0.00022246,7]
[345518512,1734310238809,-999.0,0.00022246,7]
[345518514,1734310238818,-999.0,0.00022246,7]
[345518516,1734310238828,-999.0,0.00022246,7]
[345518518,1734310238838,-999.0,0.00022246,7]
[345518520,1734310238848,-999.0,0.00022246,7]
[345518522,1734310238858,-999.0,0.00022246,7]
[345518524,1734310238868,-999.0,0.00022246,7]
[345518526,1734310238877,-999.0,0.00022246,7]
[345518527,1734310238886,-999.0,0.00022246,7]
[345518528,1734310238895,-999.0,0.00022246,7]
[345518529,1734310238905,-999.0,0.00022246,7]
[345518530,1734310238914,-999.0,0.00022246,7]
[345518531,1734310238924,-999.0,0.00022246,7]
[345518532,1734310238934,-999.0,0.00022246,7]
[345518533,1734310238946,-999.0,0.00022246,7]
[345518534,1734310238956,-999.0,0.00022246,7]
[345518535,1734310238965,-520.0,0.00022246,7]
[345518536,1734310238974,-500.0,0.00022246,3]
[345518537,1734310238984,-500.0,0.00022246,3]
[345518538,1734310238993,-500.0,0.00022246,3]
[345518539,1734310239003,-500.0,0.00022246,3]
[345518540,1734310239013,-500.0,0.00022246,3]
[345518541,1734310239023,-500.0,0.00022246,3]
[345518542,1734310239033,-500.0,0.00022246,3]
[345518543,1734310239043,-500.0,0.00022246,3]
[345518544,1734310239054,-500.0,0.00022246,3]
[345518545,1734310239066,-500.0,0.00022246,3]
[345518546,1734310239075,-552.83,0.00022246,3]
[345518547,1734310239084,-500.0,0.00022246,3]
[345518548,1734310239093,-500.0,0.00022246,3]
[345518549,1734310239102,-500.0,0.00022246,3]
[345518550,1734310239111,-500.0,0.00022246,3]
[345518551,1734310239121,-500.0,0.00022246,3]
[345518552,1734310239132,-500.0,0.00022246,3]
[345518553,1734310239141,-508.23,0.00022246,3]
[345518554,1734310239151,-426.57127236,0.00022246,3]
[345518555,1734310239161,-500.0,0.00022246,3]
[345518556,1734310239170,-500.0,0.00022246,3]
[345518557,1734310239180,-500.0,0.00022246,3]
[345518558,1734310239197,-500.0,0.00022246,3]
[345518559,1734310239207,-500.0,0.00022246,3]
[345518560,1734310239218,-500.0,0.00022246,3]
[345518561,1734310239228,-500.0,0.00022246,2]
[345518562,1734310239237,-153.86425465,0.00022247,2]
[345518563,1734310239246,-150.0,0.00022249,2]
[345518564,1734310239256,-279.71796229,0.00022259,2]
[345518565,1734310239266,-150.0,0.00022283,2]
[345518566,1734310239276,-390.28,0.00022286,2]
[345518567,1734310239286,-279.71796229,0.00022287,2]
[345518568,1734310239297,-250.0,0.00022307,2]
[345518569,1734310239308,-150.0,0.00022307,2]
[345518570,1734310239318,-420.0,0.0002231,2]
[345518571,1734310239328,-150.0,0.00022315,2]
[345518572,1734310239337,-279.71796229,0.00022315,2]
[345518573,1734310239347,-279.71796229,0.00022344,2]
[345518574,1734310239356,-279.71796229,0.00022372,2]
[345518575,1734310239365,-153.86425465,0.00022384,2]
[345518576,1734310239375,-150.0,0.00022393,2]
[345518577,1734310239384,-150.0,0.00022394,2]
[345518578,1734310239394,-937.146,0.00022397,2]
[345518579,1734310239403,-500.0,0.00022399,3]
[345518580,1734310239412,-150.0,0.00022399,2]
[345518581,1734310239422,-606.0,0.000224,31]
[345518582,1734310239432,-606.0,0.000224,31]
[345518583,1734310239451,-606.0,0.000224,31]
[345518585,1734310239463,-606.0,0.000224,31]
[345518586,1734310239473,-606.0,0.000224,31]
[345518587,1734310239483,-606.0,0.000224,31]
[345518589,1734310239492,-606.0,0.000224,31]
[345518591,1734310239502,-606.0,0.000224,31]
[345518593,1734310239511,-606.0,0.000224,31]
[345518595,1734310239521,-606.0,0.000224,31]
[345518597,1734310239531,-606.0,0.000224,31]
[345518599,1734310239541,-606.0,0.000224,31]
[345518601,1734310239552,-606.0,0.000224,31]
[345518602,1734310239561,-606.0,0.000224,31]
[345518603,1734310239570,-606.0,0.000224,31]
[345518605,1734310239579,-606.0,0.000224,31]
[345518606,1734310239589,-150.0,0.000224,2]
[345518607,1734310239599,-279.71796229,0.000224,2]
[345518608,1734310239609,-150.0,0.00022429,2]
[345518609,1734310239618,-150.0,0.00022437,2]
[345518610,1734310239627,-1500.0,0.0002246,2]
[345518611,1734310239637,-150.0,0.00022468,2]
[345518612,1734310239647,-150.0,0.00022468,2]
[345518613,1734310239656,-500.0,0.00022473,2]
[345518614,1734310239667,-500.0,0.00022473,2]
[345518615,1734310239677,-299.78228789,0.00022473,2]
[345518616,1734310239688,-500.0,0.00022473,2]
[345518617,1734310239699,-784.41077435,0.0002248,2]
[345518618,1734310239709,-153.0,0.00022481,2]
[345518619,1734310239719,-153.0,0.00022481,2]
[345518620,1734310239729,-150.0,0.00022489,2]
[345518621,1734310239739,-500.0,0.00022489,3]
[345518622,1734310239748,-500.0,0.00022489,3]
[345518623,1734310239758,-633.57,0.00022489,3]
[345518624,1734310239768,-82695.99071995,0.0002249,7]
[345518625,1734310239784,-60177.31666,0.0002249,7]
[345518626,1734310239795,-97065.75082847,0.0002249,7]
[345518627,1734310239807,-41456.38093737,0.0002249,7]
[345518628,1734310239818,-106066.56824199,0.0002249,7]
[345518629,1734310239830,-3988.72405001,0.0002249,7]
[345518630,1734310239841,-1834.14083855,0.0002249,7]
[345518631,1734310239900,-608.2061,0.000219,2]
[345518632,1734310239909,-500.0,0.00022245,3]
[345518633,1734310239918,-500.0,0.00022489,3]
[345518634,1734310239927,-500.0,0.00022489,3]
[345518635,1734310239939,-500.0,0.00022489,3]
[345518636,1734310239949,-202.06,0.00022489,3]
[345518637,1734310240129,-3041.7339,0.0002249,7]
[345518638,1734310240141,-3999.99817901,0.0002249,7]
[345518639,1734310240154,-134445.83240172,0.0002249,7]
[345518640,1734310240165,-57382.8155379,0.0002249,7]
[345518641,1734310240176,-3256.7503198,0.0002249,7]
[345518642,1734310240186,-3852.88252599,0.0002249,7]
[345518643,1734310240221,-689.62599991,0.0002249,7]
[345518644,1734310240233,-8463.2874707,0.0002249,7]
[345518645,1734310240245,-21215.84228822,0.0002249,7]
[345518646,1734310240257,-105563.15867132,0.0002249,7]
[345518647,1734310240269,-159450.0,0.0002249,7]
[345518671,1734310242714,-500.0,0.00022244,3]
[345518672,1734310242723,-203.29999987,0.0002249,7]
[345518673,1734310242735,-934.50000078,0.0002249,7]
[345518674,1734310242748,-289.1099998,0.0002249,7]
[345518675,1734310242759,-612.9450285,0.0002249,7]
[345518676,1734310242770,-12445.26853202,0.0002249,7]
[345518677,1734310242781,-4623.13990173,0.0002249,7]
[345518678,1734310242828,-621.57523273,0.0002249,7]
[345518679,1734310242840,-547.85,0.0002249,7]
[345518680,1734310242851,-39949.8727141,0.0002249,7]
[345518681,1734310242886,-658.56689661,0.0002249,7]
[345518682,1734310242898,-1977.72743276,0.0002249,7]
[345518683,1734310242910,-804.01721723,0.0002249,7]
[345518684,1734310242945,-52186.74457885,0.0002249,7]
[345518685,1734310242956,-20057.25922112,0.0002249,7]
[345518686,1734310242968,-26460.61035,0.0002249,7]
[345518687,1734310243000,-212551.8133296,0.0002249,7]
[345518697,1734310245698,-884.14841973,0.0002204,2]
[345518698,1734310245708,-33819.83658029,0.0002249,7]
[345518699,1734310245809,-3989.35246119,0.0002249,7]
[345518700,1734310245867,-67880.83295006,0.0002249,7]
[345518701,1734310245876,-784.41077435,0.0002249,2]
[345518702,1734310245885,-666.121608,0.00022496,2]
[345518703,1734310245895,-666.121608,0.00022496,4]
[345518704,1734310245904,-666.121608,0.00022497,12]
[345518705,1734310245914,-666.121608,0.00022497,10]
[345518706,1734310245923,-666.121608,0.00022497,8]
[345518707,1734310245934,-666.121608,0.00022497,4]
[345518708,1734310245943,-666.121608,0.00022497,2]
[345518709,1734310245955,-666.121608,0.00022498,2]
[345518710,1734310245964,-666.121608,0.00022498,4]
[345518711,1734310245974,-518.13458624,0.00022498,8]
[345518716,1734310391773,179.85,0.00013699,2]
[345518719,1734310629982,300.0,0.000136,2]
[345518720,1734310724762,300.0,0.00015,2]
[345518721,1734310751253,163.6,0.00010137,2]
[345518723,1734310757355,300.0,0.00015,3]
[345518724,1734310802931,300.0,0.00015,3]
[345518725,1734310845003,300.0,0.00015,4]
[345518733,1734311136253,-163.6,0.00016813,2]
[345518734,1734311136275,-213.20113815,0.00019164,2]
[345518735,1734311149645,300.0,0.00015,2]
[345518736,1734311212031,300.0,0.00015,3]
[345518737,1734311231146,-300.0,0.00019,4]
[345518738,1734311231169,-300.0,0.00019,4]
[345518739,1734311231191,-286.79886185,0.00019164,2]
[345518740,1734311231213,-500.0,0.00019164,2]
[345518741,1734311231415,-15.90955182,0.0001932,2]
[345518742,1734311336387,1462.77,0.00021,120]
[345518743,1734311346143,-300.0,0.00019,3]
[345518744,1734311346167,-300.0,0.00019,2]
[345518745,1734311346192,-500.0,0.00019164,2]
[345518746,1734311346217,-565.55044818,0.0001932,2]
[345518747,1734311346239,-291.1911756,0.0002,2]
[345518748,1734311353650,300.0,0.00015001,2]
[345518749,1734311361093,-328.5888244,0.0002,2]
[345518750,1734311361116,-560.7589804,0.0002,2]
[345518751,1734311365181,-1439.2410196,0.0002,2]
[345518752,1734311365210,-300.0,0.0002,10]
[345518753,1734311365238,-300.0,0.0002,7]
[345518754,1734311365264,-2000.0,0.0002001,2]
[345518755,1734311365287,-300.0,0.00020019,2]
[345518756,1734311365309,-3621.769188,0.0002002,2]
[345518757,1734311365330,-250.0,0.0002002,2]
[345518758,1734311365355,-200.0,0.00020028,2]
[345518759,1734311365385,-250.0,0.00020148,2]
[345518760,1734311365410,-183.13530762,0.00020247,2]
[345518761,1734311369479,581.38,0.00021,120]
[345518762,1734311373142,-818.18469238,0.00020247,2]
[345518763,1734311408860,557.8,0.0002,2]
[345518764,1734311409845,152.83305,0.00019453,2]
[345518765,1734311410314,152.83305,0.0001994,2]
[345518766,1734311417574,200.0,0.00015001,2]
[345518776,1734311431947,-4206.86,0.00020251,2]
[345518777,1734311431961,-987.49,0.00020403,2]
[345518778,1734311431974,-631.63,0.00020423,2]
[345518779,1734311431988,-152.83305,0.00020426,2]
[345518780,1734311432003,-1000.0,0.0002061,2]
[345518781,1734311432016,-187.23,0.0002061,2]
[345518782,1734311432030,-1004.24,0.00020651,2]
[345518783,1734311432048,-250.0,0.00020702,2]
[345518784,1734311432061,-154.15,0.00020928,2]
[345518785,1734311432075,-154.15,0.00020943,2]
[345518786,1734311432086,-154.15,0.00020958,2]
[345518787,1734311432098,-300.0,0.00020972,2]
[345518788,1734311432113,-154.15,0.00020973,2]
[345518789,1734311432127,-154.15,0.00020988,2]
[345518790,1734311432140,-154.15,0.00021003,2]
[345518791,1734311432153,-154.15,0.00021018,2]
[345518792,1734311432167,-154.15,0.00021033,2]
[345518793,1734311432181,-158.26,0.00021308,30]
[345518794,1734311432199,-156.11,0.00021353,2]
[345518795,1734311432212,-604.72,0.0002137,2]
[345518796,1734311432225,-150.0,0.00021455,2]
[345518797,1734311432239,-314.06,0.00021461,2]
[345518798,1734311432254,-1636.9,0.00021541,2]
[345518799,1734311432267,-153.86425467,0.00021562,2]
[345518800,1734311432280,-581.46,0.00021584,2]
[345518801,1734311432294,-535.0,0.000216,2]
[345518802,1734311432312,-589.679,0.000216,2]
[345518803,1734311432333,-150.0,0.00021625,2]
[345518804,1734311432347,-1168.0,0.00021625,2]
[345518805,1734311432361,-3881.0,0.00021625,2]
[345518806,1734311432372,-13730.0,0.00021625,2]
[345518807,1734311432384,-2584.91365781,0.00021657,2]
[345518808,1734311432396,-2584.91365774,0.0002174,2]
[345518809,1734311432412,-494.79283142,0.00021756,2]
[345518810,1734311432423,-500.0,0.00021756,2]
[345518811,1734311432434,-500.0,0.00021756,2]
[345518812,1734311432445,-577.69776792,0.00021756,2]
[345518813,1734311432458,-1107.68,0.00021757,2]
[345518814,1734311432473,-999.99,0.00021757,2]
[345518815,1734311432484,-1507.29,0.00021757,2]
[345518816,1734311432495,-13127.41,0.00021757,2]
[345518817,1734311432507,-9999.99,0.00021757,2]
[345518818,1734311432520,-1307.21,0.00021757,2]
[345518819,1734311432534,-1442.84,0.00021757,2]
[345518820,1734311432550,-2217.25,0.00021757,2]
[345518821,1734311432563,-9999.99,0.00021757,2]
[345518822,1734311432575,-424.87,0.00021757,2]
[345518823,1734311432589,-114112.02,0.00021757,2]
[345518824,1734311432603,-2981.62,0.00021757,2]
[345518825,1734311432615,-499.99,0.00021757,2]
[345518826,1734311432628,-150.99,0.00021757,2]
[345518827,1734311432641,-9131.65,0.00021757,2]
[345518828,1734311432652,-7391.52,0.00021757,2]
[345518829,1734311432665,-2584.91365774,0.00021822,2]
[345518830,1734311432678,-1686.0,0.00021825,2]
[345518831,1734311432690,-153.86425467,0.00021836,2]
[345518832,1734311432702,-200.0,0.000219,2]
[345518833,1734311432715,-2530.0,0.000219,2]
[345518834,1734311432728,-2584.91365774,0.00021905,2]
[345518835,1734311432740,-366.88251109,0.00021936,2]
[345518836,1734311432752,-500.0,0.00021972,3]
[345518837,1734311432764,-500.0,0.00021972,3]
[345518838,1734311432776,-500.0,0.00021972,3]
[345518839,1734311432787,-500.0,0.00021972,3]
[345518840,1734311432804,-500.0,0.00021972,3]
[345518841,1734311432816,-700.47,0.00021972,3]
[345518842,1734311432828,-500.0,0.00021972,3]
[345518843,1734311432840,-1768.04,0.00021972,3]
[345518844,1734311432863,-500.0,0.00021972,3]
[345518845,1734311432880,-500.0,0.00021972,3]
[345518846,1734311432895,-500.0,0.00021972,3]
[345518847,1734311432912,-500.0,0.00021972,3]
[345518848,1734311432927,-500.0,0.00021972,3]
[345518849,1734311432942,-5212.5196,0.00021973,10]
[345518850,1734311432956,-2584.91365774,0.00021987,2]
[345518851,1734311432971,-500.0,0.00021998,3]
[345518852,1734311432986,-500.0,0.00021998,3]
[345518853,1734311433000,-500.0,0.00021998,3]
[345518854,1734311433016,-500.0,0.00021998,3]
[345518855,1734311433032,-500.0,0.00021998,3]
[345518856,1734311433051,-727.03,0.00021998,3]
[345518857,1734311433067,-500.0,0.00021998,3]
[345518858,1734311433083,-500.0,0.00021998,3]
[345518859,1734311433098,-500.0,0.00021998,3]
[345518860,1734311433113,-783.43,0.00021998,3]
[345518861,1734311433128,-500.0,0.00021998,3]
[345518862,1734311433143,-500.0,0.00021998,3]
[345518863,1734311433157,-615.05,0.00021998,3]
[345518864,1734311433172,-841.84,0.00021998,3]
[345518865,1734311433186,-500.0,0.00021998,3]
[345518866,1734311433200,-500.0,0.00021998,3]
[345518867,1734311433214,-500.0,0.00021998,3]
[345518868,1734311433227,-500.0,0.00021998,3]
[345518869,1734311433241,-500.0,0.00021998,3]
[345518870,1734311433255,-500.0,0.00021998,3]
[345518871,1734311433269,-553.44,0.00021998,3]
[345518872,1734311433282,-958.54,0.00021998,3]
[345518873,1734311433300,-500.0,0.00021999,3]
[345518874,1734311433315,-500.0,0.00021999,3]
[345518875,1734311433329,-389.46,0.00021999,3]
[345518876,1734311433344,-500.0,0.00021999,3]
[345518877,1734311433358,-500.0,0.00021999,3]
[345518878,1734311433374,-346.76219299,0.00021999,3]
[345518879,1734311433389,-500.0,0.00021999,3]
[345518880,1734311433406,-500.0,0.00021999,3]
[345518881,1734311433419,-500.0,0.00021999,3]
[345518882,1734311433434,-500.0,0.00021999,3]
[345518883,1734311433447,-500.0,0.00021999,3]
[345518884,1734311433459,-500.0,0.00021999,3]
[345518885,1734311433472,-500.0,0.00021999,3]
[345518886,1734311433483,-500.0,0.00021999,3]
[345518887,1734311433492,-500.0,0.00021999,3]
[345518888,1734311433502,-500.0,0.00021999,3]
[345518889,1734311433725,-500.0,0.00021999,3]
[345518890,1734311433744,-500.0,0.00021999,3]
[345518891,1734311433754,-500.0,0.00021999,3]
[345518892,1734311433764,-500.0,0.00021999,3]